Cogmind - Beta 17 @@@ ROGUE MODE // 2026.07.28 @ 11:42:32 Player: gortmind Result: Destroyed by 41-ITF(R) with Subdweller Laser Performance ------------- Evolutions (0) 0 Regions Visited (2) 400 Robots Destroyed (11) 55 Value Destroyed (185) 185 Prototype IDs (0) 0 Alien Tech Used (0) 0 Bonus (0) 0 TOTAL SCORE: 640 Bonus ------- None Cogmind --------- Core Integrity 0/250 Matter 300/300 Energy 36/100 System Corruption 0% Temperature Cool (6) Movement Core (150) Ox2 Location -10/Subcaves Parts ------- > --- POWER (1) -------- (None) > --- PROPULSION (2) --- (None) > --- UTILITY (2) ------ Small Storage Unit > --- WEAPON (2) ------- Light EM Pulse Cannon > --- INVENTORY (8) ---- Light Ion Engine Light Ion Engine Authchip [R/Combat] Authchip [R/Combat] Datajack Peak State ------------ > --- POWER ------------ Light Ion Engine > --- PROPULSION ------- Compact Wheel Compact Wheel > --- UTILITY ---------- Small Storage Unit Light Armor Plating > --- WEAPON ----------- Light EM Pulse Cannon Light EM Pulse Cannon > --- INVENTORY -------- Light Ion Engine Light Ion Engine Authchip [R/Combat] EM Pulse Gun Light EM Pulse Cannon Light EM Pulse Cannon Datajack [Rating: 10] Favorites ----------- Power Light Ion Engine Engine Light Ion Engine Propulsion Compact Wheel Wheel Compact Wheel Utility Small Storage Unit Storage Small Storage Unit Protection Light Armor Plating Weapon Light EM Pulse Cannon Energy Gun EM Pulse Gun Energy Cannon Light EM Pulse Cannon Ballistic Gun Assault Rifle Special Melee Weapon Datajack Build | -11 -10 -10 ------- Run | Yrd Mat Sub Slots Evolved . | . . . Power . | . . . Propulsion . | . . . Utility . | . . . Weapon . | . . . Parts Attached 12 | 4 6 2 Power 1 | 1 . . Engine 1 | 1 . . Core . | . . . Reactor . | . . . Propulsion 2 | 2 . . Treads . | . . . Leg . | . . . Wheel 2 | 2 . . Hover . | . . . Flight . | . . . Utility 2 | 1 1 . Device . | . . . Storage 1 | 1 . . Processor . | . . . Hackware . | . . . Protection 1 | . 1 . Artifact . | . . . Weapon 7 | . 5 2 Energy Gun 1 | . 1 . Energy Cannon 4 | . 2 2 Ballistic Gun 1 | . 1 . Ballistic Cannon . | . . . Launcher . | . . . Special Weapon . | . . . Impact Weapon . | . . . Slashing Weapon . | . . . Piercing Weapon . | . . . Special Melee Weapon 1 | . 1 . Unidentified Prototypes . | . . . Parts Lost 8 | . . 8 Power 1 | . . 1 Propulsion 2 | . . 2 Utility 1 | . . 1 Weapon 4 | . . 4 Highest Loss Streak 6 | . . 6 To Critical Strikes . | . . . Average Backups 6 | 4 6 7 Power 1 | . 1 2 Propulsion . | 1 1 . Utility . | . . 2 Weapon 2 | 1 2 2 Tool/Special . | . . . Unused Backups 9 | . 5 4 Power 2 | . . 2 Propulsion 4 | . 4 . Utility 2 | . . 2 Weapon 1 | . 1 . Tool/Special . | . . . Average Slot Usage (%) 93 | . 96 81 Engine 13 | . 14 12 Wheel 25 | . 27 20 Storage 14 | . 14 14 Protection 12 | . 12 12 Energy Gun 5 | . 6 . Energy Cannon 17 | . 16 19 Ballistic Gun 2 | . 3 . Peak Build Rating 10 | 4 10 10 Average Rating 7 | 3 8 7 On Entrance 4 | . 4 10 Avg Prop Armor Cover (%) . | . . . Naked Turns . | . . . Heaviest Build 19 | 8 19 19 Greatest Support 32 | 32 32 32 Greatest Overweight (x) 2 | 2 . 2 Average Overweight (x) . | . . . Largest Inventory Capacity 8 | 8 8 8 Average Capacity 7 | 7 8 8 Most Carried 8 | 8 8 8 Average Carried 6 | 4 6 7 Final Capacity 8 | 8 8 8 Final Carried 8 | 8 8 5 Class Distribution -------------------- 100% | Mutant Dominant Class ---------------- Mutant | -10/Materials Mutant | -10/Subcaves Resources | -11 -10 -10 ----------- Run | Yrd Mat Sub Matter Collected 370 | 214 136 20 Remotely . | . . . Salvage Created 343 | . 306 37 Parts 31 | . 28 3 Haulers Intercepted 2 | . 2 . Recyclers Shooed . | . . . Parts Field Recycled . | . . . Retrieved Matter . | . . . Parts Self-Destructed 8 | . . 8 Prevented . | . . . Parts Restored . | . . . Kills | -11 -10 -10 ------- Run | Yrd Mat Sub Combat Hostiles Destroyed 5 | . 4 1 Guns 2 | . 2 . Cannons 3 | . 2 1 Classes Destroyed 6 | . 5 1 Builder 1 | . 1 . Hauler 2 | . 2 . Watcher 3 | . 3 . Swarmer 2 | . 2 . Grunt 2 | . 2 . Subdweller 1 | . . 1 Best Kill Streak 3 | . 3 1 Combat Bots Only 1 | . 1 1 Max Kills in Single Turn 1 | . 1 1 Gunslinging . | . . . Exploded . | . . . Melee . | . . . Uniques/NPCs Destroyed . | . . . Combat | -11 -10 -10 -------- Run | Yrd Mat Sub Hostile Shots Fired 70 | . 10 60 Missed 20 | . 3 17 Hits 50 | . 7 43 Projectile 50 | . 7 43 Damage Taken 975 | . 89 886 Core 251 | . 21 230 Absorbed by Shields . | . . . Regen/Repaired (Parts) 8 | . 8 . Core Remaining (%) 100 | 100 . . Volleys Fired 23 | . 16 7 Largest 2 | . 2 2 Hottest 112 | . 112 112 Shots Fired 40 | . 31 9 Gun 15 | . 15 . Cannon 25 | . 16 9 Launcher . | . . . Special . | . . . Kinetic 3 | . 3 . Thermal . | . . . Explosive . | . . . Electromagnetic 37 | . 28 9 Robot Hit Streak 6 | . 3 6 Robot Miss Streak 3 | . 3 2 Penetration Max . | . . . Secondary Targets . | . . . Shots Hit Robots 25 | . 17 8 Core Hits 12 | . 10 2 Critical Kills . | . . . Critical Parts Destroyed . | . . . Critical Strikes . | . . . Melee Attacks 8 | . 7 1 Impact . | . . . Slashing . | . . . Piercing . | . . . Sneak Attacks 4 | . 4 . Combat Hostiles . | . . . Follow-up Attacks . | . . . Damage Inflicted 495 | . 379 116 Guns 89 | . 89 . Cannons 359 | . 243 116 Explosions 46 | . 46 . Melee . | . . . Ramming 1 | . 1 . Kinetic 37 | . 37 . Thermal 46 | . 46 . Explosive . | . . . Electromagnetic 411 | . 295 116 Impact . | . . . Slashing . | . . . Piercing . | . . . Highest Corruption . | . . . Average Corruption . | . . . Corruption Purged . | . . . Corruption Blocked . | . . . Overload Shots . | . . . Overflow Damage . | . . . Projectiles . | . . . Explosions . | . . . Melee . | . . . Knockbacks 1 | . 1 . Impact 1 | . 1 . Kinetic . | . . . Secondary . | . . . Self-Inflicted Damage . | . . . Shots . | . . . Rammed 2 | . 2 . Targets Rammed 2 | . 2 . Kicked . | . . . Crushed . | . . . Highest Temperature 124 | . 124 12 Average Temperature 38 | . 39 8 Received Heat Transfer 114 | . 6 108 Siege Activations . | . . . Martial Activations . | . . . Shielding Activations . | . . . Robots Disrupted . | . . . Combat Hostiles . | . . . Robots Corrupted . | . . . Combat Hostiles . | . . . Parts Fried . | . . . Impact Corruptions . | . . . Robots Melted . | . . . Combat Hostiles . | . . . Parts Melted . | . . . Heat Transferred 50 | . 50 . Parts Sabotaged . | . . . Parts Stolen . | . . . Parts Stripped . | . . . Power Chain Reactions 1 | . 1 . Alert | -11 -10 -10 ------- Run | Yrd Mat Sub Maximum Alert Level . | . . . Low Security (%) 100 | 100 100 . Level 1 . | . . . Level 2 . | . . . Level 3 . | . . . Level 4 . | . . . Level 5 . | . . . High Security . | . . . Max Security . | . . . Peak Influence 46 | . 46 . Initial . | . . . Average 12 | . 14 . Influence Increases 160 | . 160 . Destroy 0b10 Robot/C 80 | . 80 . Destroy 0b10 Robot/NC 30 | . 30 . Destroy Leader 30 | . 30 . Successful Hack 3 | . 3 . Destroy Structure 2 | . 2 . Lose Combat Pursuer 15 | . 15 . Influence Decreases 160 | . 160 . Time Decay 160 | . 160 . Squads Dispatched 1 | . 1 . Investigation . | . . . Extermination . | . . . Reinforcement 1 | . 1 . Assault . | . . . Garrison . | . . . Intercept . | . . . Searches Triggered . | . . . Construction Impeded . | . . . Haulers Reinforced . | . . . Active Scanning Responses . | . . . Cargo Convoy Interrupts . | . . . Stealth | -11 -10 -10 --------- Run | Yrd Mat Sub Distress Signals . | . . . Communications Jammed . | . . . Distress Signals . | . . . Times Spotted 17 | . 9 8 Peak Tracking Total 4 | . 3 4 Tactical Retreats 3 | . 1 2 Traps | -11 -10 -10 ------- Run | Yrd Mat Sub Traps Triggered 1 | . 1 . Indirectly . | . . . Trap Hack Attempts . | . . . Triggered . | . . . Disarmed . | . . . Reprogrammed . | . . . Reused . | . . . Traps Extracted . | . . . Installed . | . . . Triggered . | . . . Machines | -11 -10 -10 ---------- Run | Yrd Mat Sub Machines Disabled . | . . . Max in Single Turn . | . . . Machines Repaired . | . . . Machines Dismantled . | . . . Machines Sabotaged . | . . . Overloaded Fab Kills . | . . . Hacking | -11 -10 -10 --------- Run | Yrd Mat Sub Machines Accessed 3 | . 3 . Terminals 1 | . 1 . Fabricators . | . . . Repair Stations 1 | . 1 . Recycling Units 1 | . 1 . Scanalyzers . | . . . Garrison Access . | . . . Total Hacks 6 | . 6 . Successful 3 | . 3 . Failed 3 | . 3 . Catastrophic . | . . . Database Lockouts . | . . . Manual 4 | . 4 . Terminals 2 | . 2 . Fabricators . | . . . Repair Stations 3 | . 3 . Recycling Units 1 | . 1 . Scanalyzers . | . . . Garrison Access . | . . . Terminal Hacks . | . . . Fabricator Hacks . | . . . Repair Station Hacks 2 | . 2 . Scan Component 1 | . 1 . Repair 1 | . 1 . Recycling Unit Hacks 1 | . 1 . Report Inventory 1 | . 1 . Scanalyzer . | . . . Garrison Access Hacks . | . . . Unauthorized Hacks . | . . . Terminals . | . . . Fabricators . | . . . Repair Stations . | . . . Recycling Units . | . . . Scanalyzers . | . . . Garrison Access . | . . . Data Cores Recovered . | . . . Used . | . . . Hacking Detections 2 | . 2 . Full Trace Events . | . . . Feedback Events . | . . . Feedback Blocked . | . . . Robot Schematics Acquired . | . . . Robots Built . | . . . Authchips . | . . . Time . | . . . Total Robot Build Rating . | . . . Part Schematics Acquired . | . . . Parts Built . | . . . Authchips . | . . . Time . | . . . Total Part Build Rating . | . . . Part Studies Acquired . | . . . Parts Repaired 1 | . 1 . Time 26 | . 26 . Parts Recycled . | . . . Recycled Matter . | . . . Retrieved Matter . | . . . Retrieved Components . | . . . Parts Scanalyzed . | . . . Part Schematics Acquired . | . . . Parts Damaged . | . . . Bothacking | -11 -10 -10 ------------ Run | Yrd Mat Sub Used RIF Installer . | . . . Robots Hacked 3 | . 2 1 Non-combat 2 | . 2 . Combat 1 | . . 1 Robot Hacks Applied 4 | . 3 1 parse_system 1 | . . 1 no_distress 1 | . 1 . check_alert 2 | . 2 . Relay Couplers Released . | . . . Fabnet Peak Effective % . | . . . Robots Rewired . | . . . Allies Hacked . | . . . Hacks Repelled . | . . . Allies | -11 -10 -10 -------- Run | Yrd Mat Sub Total Allies . | . . . Largest Group . | . . . Highest-Rated Group . | . . . Highest-Rated Ally . | . . . Total Orders . | . . . Ally Attacks . | . . . Total Damage . | . . . Kills . | . . . Allies Corrupted . | . . . Allies Melted . | . . . Intel | -11 -10 -10 ------- Run | Yrd Mat Sub Active Infowar (turns) . | . . . Robot Analysis Total . | . . . Derelict Logs Recovered . | . . . Drone Launches . | . . . Drone Recoveries . | . . . Exploration | -11 -10 -10 ------------- Run | Yrd Mat Sub Turns Passed 777 | 71 541 165 Spaces Moved 603 | 60 413 130 Core 22 | 20 . 2 Treads . | . . . Legs . | . . . Wheels 581 | 40 413 128 Hover . | . . . Flight . | . . . Fastest Speed 50 | 50 100 100 Average Speed 99 | 93 100 100 Slowest Speed 150 | 150 100 150 Overloaded Moves . | . . . Propulsion Burnouts . | . . . Robots Hopped . | . . . Potential Cave-ins . | . . . Cave-ins Triggered . | . . . Exploration Rate (%) 25 | 4 58 13 Regions Visited 2 Branch Regions 1 Pre-discovered Areas . | . . . Known Exits Taken . | . . . Unknown Exits Taken 2 | 1 1 . Scrap Searched . | . . . Spaces Dug . | . . . Terrain Destroyed 2 | . 2 . Melee . | . . . Projectile . | . . . AOE 2 | . 2 . Terrain Rammed . | . . . Walls Destroyed . | . . . Machines Disabled . | . . . Actions | -11 -10 -10 --------- Run | Yrd Mat Sub Total 735 | 75 506 154 Wait 52 | . 40 12 Move 601 | 59 412 130 Hop . | . . . Pick Up 23 | 12 11 . Fast Attach . | . . . Attach 11 | 4 4 3 Detach . | . . . Swap 8 | . 7 1 Drop 7 | . 7 . Fire 23 | . 16 7 Melee 8 | . 7 1 Ram 2 | . 2 . Kick . | . . . Crush . | . . . Escape Stasis . | . . . Rewire . | . . . Trap . | . . . Miscellaneous . | . . . Route ------- -11/Scrapyard -10/Materials (discovered 4 exits: [*Mat x2] / [*Min] / [*Sub]) -10/Subcaves History --------- Turn | Location | Event 3 | -11/Scrapyard | Discovered new exit (range 16) 72 | -11/Scrapyard | Entered Materials 273 | -10/Materials | Discovered new exit (range 15) 310 | -10/Materials | Build established: Mutant 325 | -10/Materials | Discovered new exit (range 12) 503 | -10/Materials | Discovered new exit (range 16) 505 | -10/Materials | Discovered new exit (range 8) 569 | -10/Materials | Repaired Com. Wheel 613 | -10/Materials | Entered Subcaves 614 | -10/Subcaves | Approached by a straggling Scientist 659 | -10/Subcaves | Shifting Twisted Machinery released Sub. Monowheel 701 | -10/Subcaves | A swath of the cavern ceiling suddenly collapsed 767 | -10/Subcaves | Core integrity fell below 50% 777 | -10/Subcaves | Core integrity fell below 20% 778 | -10/Subcaves | Destroyed by 41-ITF(R) with Subdweller Laser Last Messages --------------- 00693_ Com. Wheel destroyed. A swath of the cavern ceiling suddenly collapses. 00736_ 41-ITF(R) emerges from the Twisted Machinery. 00750_ Lgt. Ion Engine destroyed. 00751_ K1-ER8(R) destroyed. 00752_ Lgt. EM Pulse Cannon destroyed. 00757_ Subatomizers dissect the Corrupted Sub. Optics. 00757_ Jacked 41-ITF(R)... >>parse_system Reading system data... 00758_ Lgt. Armor Plating destroyed. 00762_ Com. Wheel destroyed. 00762_ EM Pulse Gun destroyed. 00768_ Subatomizers dissect the Corrupted Sub. Optics. 00770_ Lgt. EM Pulse Cannon destroyed. 00771_ Acquired 20 matter. Map ----- +----------------------------------------------------+ | ?????## ##??? ???????????????????????? | | ????## #### #??????????????????????????? | | ????# #?#????????????????????????? | | ????# " ##??????????????????????? | | ????## " " " #??????????????????????? | | ????## " #####" #??????????????????????? | | ???## ### "#####" #??????????????????????? | | ??## ##?## " " " """ #??????????????????????? | | ?## ##??# " " = " #???????????????????????? | | ## "#??#### " """#???????????????????????? | | ""#?????## ## ""#??#????????????????????? | | ########???## #??###"" ????????????????????? | | ###" #????###???????? ????????????????????? | | """ "?????????????" ????????????????????? | | """ #????????????#"" ?????????????????????? | | ""### ""??????????"""" ?????????????????????? | | ####?#??????????????"""" ?????????????????????? | | ##???? ???????????????" " ?????????????????????? | | ###???? " ?????????????#""#?????????????????????? | | ??????? "#?????????????#""##????????????????????? | | ??????? ""#?????????????#" ##???????????????????? | | #####??#" ##???????????## #### ?????????????? | | #"" ##??" #???????????# """"" ??????????????? | | # #?? #???????????## ! ""##""??????????????? | | ##?# #????#??????##R%#####??????#??????????? | | ## #?# ##???# ###### @*##???## ##????????? | | ## #### #???# R ###""" #????????? | | # ### #????# #?????????? | | # ## #?###### #?????????? | | # #### ## RR ???????? | | # ## #### ???????? | | #### ##????????? | | ## ## ####?????????? | | ##? ##????????????? | | ### ## ### ##??? ##?????????????? | | #####?####### ##?### ##?????#??????????????? | | ????????????###????#########?????????????????????? | | ?????????????????????????????????????????????????? | | ?????????????????????????????????????????????????? | | ?????????????????????????????????????????????????? | | ?????????????????????????????????????????????????? | | ?????????????????????????????????????????????????? | | ?????????????????????????????????????????????????? | | ?????????????????????????????????????????????????? | | ?????????????????????????????????????????????????? | | ?????????????????????????????????????????????????? | | ?????????????????????????????????????????????????? | | ?????????????????????????????????????????????????? | | ?????????????????????????????????????????????????? | | ?????????????????????????????????????????????????? | +----------------------------------------------------+ Best States ------------- Heat Dissipation 25 Energy Generation 10 Energy Capacity 125 Matter Stores 300 Matter Capacity 300 Sight Range 16 Terrain Scan Density 10 Armor Coverage 150 Evasion (%) 50 Authchip Count 2 Item Schematics ----------------- None Robot Schematics ------------------ None Fabricated ------------ Nothing Repaired ---------- Com. Wheel | 73% | -10/Materials Studied --------- None Alien Tech Used ----------------- None Achievements -------------- None Challenges ------------ None Game ------ Seed ThermicAerolevMallet Manual? 0 Play Time 00:20:17 Cumulative 11.2 hours Start 2026.07.28 @ 10:23:22 End 2026.07.28 @ 11:42:32 Sessions 1 Manual Loads 0 Difficulty Rogue Special Mode None Game No. 14 Rogue 14 Adventurer 0 Explorer 0 Win Type - Total 0 Types 0/0/0/0/0/0/0/0/0/0 Lore% 11 Gallery% 12 Achievement% 14 Wizard Run 0 Options --------- Layout 1 ASCII 0 Keyboard 0 Movement Mouse Keybinds 0 Fullscreen 1 Font 48/Smallcaps Map View 50x35 Zoom Use 0% Tactical HUD 1 Map Filters NONE Filters NONE Steam 1 RUN: 65334c8c-49c5-477c-a35b-ad6bcc285b63